[Event "FIDE World Rapid-ch Open 2018"]
[White "Sharma, Dinesh K."]
[Black "Huzman, Alexander"]
[Site "St. Petersburg"]
[Round "12.69"]
[Annotator "ChessBase"]
[Result "1/2-1/2"]
[Date "2018.12.28"]
[WhiteElo "2295"]
[BlackElo "2580"]
[PlyCount "60"]
[TimeControl "900+10"]

1. Nf3 {[%emt 0:0:0]} Nf6 {[%emt 0:0:0]} 2. c4 {[%emt 0:0:0]} e6 {[%emt 0:0:4]
} 3. d4 {[%emt 0:0:0]} d5 {[%emt 0:0:1]} 4. Nc3 {[%emt 0:0:0]} c6 {[%emt 0:0:2]} 5. cxd5 {[%emt 0:0:0]} exd5 {[%emt 0:0:10]} 6. Bg5 {[%emt 0:0:3]} h6 {[%emt 0:0:12]} 7. Bf4 {[%emt 0:0:17]} Bf5 {[%emt 0:0:0]} 8. e3 {[%emt 0:1:27]} Qb6 {[%emt 0:0:6]} 9. Qc1 {[%emt 0:0:2]} Nbd7 {[%emt 0:0:3]
} 10. Be2 {[%emt 0:0:6]} Be7 {[%emt 0:1:17]} 11. h3 {[%emt 0:0:0]} 0-0 {[%emt 0:0:16]} 12. 0-0 {[%emt 0:1:27]} Rfe8 {[%emt 0:0:19]} 13. Re1 {[%emt 0:0:5]} Qd8 {[%emt 0:1:45]} 14. Qd1 {[%emt 0:0:21]} Ne4 {[%emt 0:0:24]
} 15. Bd3 {[%emt 0:1:35]} Bf8 {[%emt 0:1:43]} 16. Ne5 {[%emt 0:0:0]} Nxe5 {[%emt 0:2:11]} 17. Bxe5 {[%emt 0:0:6]} Nxc3 {[%emt 0:0:42]} 18. bxc3 {[%emt 0:0:5]} Bxd3 {[%emt 0:0:1]} 19. Qxd3 {[%emt 0:0:2]} b5 {[%emt 0:0:1]
} 20. a4 {[%emt 0:0:22]} a6 {[%emt 0:0:1]} 21. e4 {[%emt 0:0:0]} dxe4 {[%emt 0:0:18]} 22. Rxe4 {[%emt 0:0:26]} Qd7 {[%emt 0:0:2]} 23. Re3 {[%emt 0:3:48]} Rad8 {[%emt 0:2:34]} 24. Qc2 {[%emt 0:1:52]} Qd5 {[%emt 0:0:57]
} 25. Rg3 {[%emt 0:0:47]} Re6 {[%emt 0:0:1]} 26. axb5 {[%emt 0:0:10]
} axb5 {[%emt 0:0:10]} 27. Ra7 Rd7 {[%emt 0:1:23]} 28. Ra8 {[%emt 0:0:14]
} Rd8 {[%emt 0:0:1]} 29. Ra7 Rd7 30. Ra8 {[%emt 0:0:10]} Rd8 {[%emt 0:0:20]
} 1/2-1/2

[Event "FIDE World Rapid-ch Open 2018"]
[White "Tregubov, Pavel V."]
[Black "Anikonov, Dmitry"]
[Site "St. Petersburg"]
[Round "12.70"]
[Annotator "ChessBase"]
[Result "1-0"]
[Date "2018.12.28"]
[WhiteElo "2592"]
[BlackElo "2371"]
[PlyCount "83"]
[TimeControl "900+10"]

1. d4 {[%emt 0:0:0]} e6 {[%emt 0:0:0]} 2. e4 {[%emt 0:0:9]} d5 {[%emt 0:0:0]} 3. exd5 {[%emt 0:0:1]} exd5 {[%emt 0:0:0]} 4. Nf3 {[%emt 0:0:1]} Bd6 {[%emt 0:0:2]} 5. c4 {[%emt 0:0:7]} Nf6 {[%emt 0:0:44]} 6. c5 {[%emt 0:0:11]
} Be7 {[%emt 0:0:1]} 7. Bd3 {[%emt 0:0:6]} 0-0 {[%emt 0:0:0]} 8. 0-0 {[%emt 0:0:2]} b6 {[%emt 0:0:41]} 9. Be3 {[%emt 0:0:3]} Bg4 {[%emt 0:0:33]
} 10. Nbd2 {[%emt 0:1:0]} bxc5 {[%emt 0:1:32]} 11. dxc5 {[%emt 0:0:2]
} Nc6 {[%emt 0:1:12]} 12. Qa4 {[%emt 0:2:13]} Bd7 {[%emt 0:0:0]} 13. Bb5 {[%emt 0:0:10]} Qe8 {[%emt 0:1:0]} 14. Rfe1 {[%emt 0:0:45]} a6 {[%emt 0:0:16]} 15. Bxc6 {[%emt 0:0:5]} Bxc6 {[%emt 0:0:1]} 16. Qa5 {[%emt 0:0:7]
} Qd8 {[%emt 0:1:11]} 17. Nd4 {[%emt 0:0:40]} Bd7 {[%emt 0:0:0]} 18. Bf4 {[%emt 0:0:28]} Ra7 {[%emt 0:1:59]} 19. c6 {[%emt 0:0:40]} Bc8 {[%emt 0:0:20]} 20. Nb5 {[%emt 0:1:36]} Bb4 {[%emt 0:0:29]} 21. Qxb4 {[%emt 0:0:5]
} axb5 {[%emt 0:0:1]} 22. Qxb5 {[%emt 0:0:57]} Be6 {[%emt 0:0:0]} 23. Nb3 {[%emt 0:1:35]} Qa8 {[%emt 0:0:9]} 24. Nd4 {[%emt 0:1:36]} Rb8 {[%emt 0:1:18]} 25. Qe2 {[%emt 0:1:10]} Rxa2 {[%emt 0:1:10]} 26. Rxa2 {[%emt 0:0:1]
} Qxa2 {[%emt 0:0:2]} 27. Nxe6 {[%emt 0:1:51]} Rxb2 {[%emt 0:0:0]} 28. Qe3 {[%emt 0:1:7]} Ng4 {[%emt 0:1:41]} 29. Qg3 {[%emt 0:0:36]} Re2 {[%emt 0:0:56]} 30. Rf1 {[%emt 0:0:4]} Rxe6 {[%emt 0:0:26]} 31. Qxg4 {[%emt 0:0:2]
} Qc4 {[%emt 0:0:6]} 32. h3 {[%emt 0:0:24]} h5 {[%emt 0:0:24]
} 33. Qg5 {[%emt 0:0:29]} Rg6 {[%emt 0:0:12]} 34. Qe5 {[%emt 0:0:27]} Qxc6 {[%emt 0:0:4]
} 35. Rc1 {[%emt 0:0:8]} Qd7 {[%emt 0:0:3]} 36. Qxh5 {[%emt 0:0:19]
} c6 {[%emt 0:0:1]} 37. Rb1 {[%emt 0:0:13]} Re6 {[%emt 0:0:0]} 38. Qg4 {[%emt 0:0:3]} g6 {[%emt 0:0:45]} 39. Rb8+ {[%emt 0:0:15]} Kg7 {[%emt 0:0:1]} 40. Qh4 {[%emt 0:0:12]} Re1+ {[%emt 0:0:13]} 41. Kh2 {[%emt 0:0:2]
} Re8 {[%emt 0:0:1]} 42. Be5+ {[%emt 0:0:5]} 1-0

[Event "FIDE World Rapid-ch Open 2018"]
[White "Sychev, Klementy"]
[Black "Fakhrutdinov, Timur"]
[Site "St. Petersburg"]
[Round "12.71"]
[Annotator "ChessBase"]
[Result "1/2-1/2"]
[Date "2018.12.28"]
[WhiteElo "2537"]
[BlackElo "2481"]
[PlyCount "104"]
[TimeControl "900+10"]

1. b3 {[%emt 0:0:0]} e5 {[%emt 0:0:8]} 2. Bb2 {[%emt 0:0:0]} Nc6 {[%emt 0:0:4]
} 3. e3 {[%emt 0:0:0]} Nf6 {[%emt 0:0:35]} 4. Nf3 {[%emt 0:0:0]} d6 {[%emt 0:0:20]} 5. c4 {[%emt 0:0:59]} Be7 {[%emt 0:1:12]} 6. Be2 {[%emt 0:0:8]
} e4 {[%emt 0:1:48]} 7. Nd4 {[%emt 0:0:2]} Ne5 {[%emt 0:0:7]
} 8. f4 {[%emt 0:2:10]} Nd3+ {[%emt 0:1:28]} 9. Bxd3 {[%emt 0:0:3]} exd3 {[%emt 0:0:3]
} 10. Nc3 {[%emt 0:0:15]} d5 {[%emt 0:0:56]} 11. cxd5 {[%emt 0:0:0]} Nxd5 {[%emt 0:0:10]} 12. 0-0 {[%emt 0:0:18]} 0-0 {[%emt 0:0:55]} 13. Rc1 {[%emt 0:0:8]} Nf6 {[%emt 0:1:18]} 14. Nf3 {[%emt 0:0:49]} b6 {[%emt 0:0:0]} 15. Ne5 {[%emt 0:0:12]} Bb7 {[%emt 0:0:3]} 16. Rf2 {[%emt 0:0:46]} c5 {[%emt 0:1:15]} 17. Qf1 {[%emt 0:0:50]} Ne4 {[%emt 0:0:5]} 18. Nxe4 {[%emt 0:0:11]
} Bxe4 {[%emt 0:0:2]} 19. f5 {[%emt 0:0:6]} f6 {[%emt 0:0:0]} 20. Ng4 {[%emt 0:1:11]} Qd5 {[%emt 0:0:52]} 21. Rf4 {[%emt 0:4:17]} Bd6 {[%emt 0:0:12]} 22. Rxe4 {[%emt 0:0:4]} Qxe4 {[%emt 0:0:2]} 23. Rc4 {[%emt 0:0:1]
} Qd5 {[%emt 0:2:2]} 24. e4 {[%emt 0:0:1]} Qf7 {[%emt 0:0:0]} 25. Qxd3 {[%emt 0:0:2]} Bf4 {[%emt 0:0:25]} 26. Rc2 {[%emt 0:0:46]} Rad8 {[%emt 0:0:20]} 27. Qe2 {[%emt 0:0:1]} Qd7 {[%emt 0:0:26]} 28. Bc3 {[%emt 0:0:29]
} Qd3 {[%emt 0:0:37]} 29. Qxd3 {[%emt 0:0:7]} Rxd3 {[%emt 0:0:0]} 30. Kf1 {[%emt 0:0:46]} Rfd8 {[%emt 0:0:30]} 31. Ke2 {[%emt 0:0:16]} h5 {[%emt 0:0:10]} 32. Nf2 {[%emt 0:0:12]} R3d6 {[%emt 0:0:26]} 33. g3 {[%emt 0:0:57]
} Be5 {[%emt 0:0:27]} 34. d3 {[%emt 0:0:59]} Bxc3 {[%emt 0:0:0]} 35. Rxc3 {[%emt 0:0:2]} g6 {[%emt 0:0:10]} 36. fxg6 Kg7 37. Nh3 {[%emt 0:0:10]
} Kxg6 {[%emt 0:0:26]} 38. Nf4+ {[%emt 0:0:1]} Kg5 {[%emt 0:0:0]} 39. Kf3 {[%emt 0:0:19]} Re8 {[%emt 0:0:6]} 40. b4 {[%emt 0:0:49]} cxb4 {[%emt 0:0:20]} 41. Rc7 {[%emt 0:0:0]} f5 {[%emt 0:0:9]} 42. Rxa7 {[%emt 0:0:16]
} fxe4+ {[%emt 0:0:8]} 43. dxe4 {[%emt 0:0:1]} Rd2 {[%emt 0:0:0]} 44. Rg7+ {[%emt 0:0:18]} Kf6 {[%emt 0:0:9]} 45. Rg6+ {[%emt 0:0:27]
} Kf7 {[%emt 0:0:9]} 46. Rxb6 {[%emt 0:0:1]} Rxa2 {[%emt 0:0:12]} 47. Rxb4 {[%emt 0:0:10]} Rxh2 {[%emt 0:0:8]} 48. Rb5 {[%emt 0:0:2]} h4 {[%emt 0:0:0]} 49. Rf5+ {[%emt 0:0:4]} Kg8 {[%emt 0:0:11]} 50. Rg5+ {[%emt 0:0:1]} Kf7 {[%emt 0:0:1]} 51. Rf5+ {[%emt 0:0:3]} Kg8 {[%emt 0:0:3]} 52. Rg5+ {[%emt 0:0:5]
} Kf7 {[%emt 0:0:2]} 1/2-1/2

[Event "FIDE World Rapid-ch Open 2018"]
[White "Geller, Jakov"]
[Black "Vokhidov, Shamsiddin"]
[Site "St. Petersburg"]
[Round "12.72"]
[Annotator "ChessBase"]
[Result "0-1"]
[Date "2018.12.28"]
[WhiteElo "2518"]
[BlackElo "2480"]
[PlyCount "78"]
[TimeControl "900+10"]

1. e4 {[%emt 0:0:0]} e5 {[%emt 0:0:0]} 2. Nf3 {[%emt 0:0:0]} Nc6 {[%emt 0:0:0]
} 3. Bc4 {[%emt 0:0:0]} Bc5 {[%emt 0:0:0]} 4. d3 {[%emt 0:0:0]} Nf6 {[%emt 0:0:0]} 5. 0-0 {[%emt 0:0:2]} d6 {[%emt 0:0:4]} 6. c3 {[%emt 0:0:3]
} a6 {[%emt 0:0:1]} 7. Bb3 {[%emt 0:0:2]} Ba7 {[%emt 0:0:2]
} 8. Nbd2 {[%emt 0:0:11]} 0-0 {[%emt 0:0:2]} 9. h3 {[%emt 0:0:3]} Be6 {[%emt 0:1:10]
} 10. Bc2 {[%emt 0:0:5]} d5 {[%emt 0:0:6]} 11. exd5 {[%emt 0:0:0]} Nxd5 {[%emt 0:0:3]} 12. Re1 {[%emt 0:0:4]} Nf4 {[%emt 0:1:56]} 13. Ne4 {[%emt 0:1:1]} Ng6 {[%emt 0:0:2]} 14. Nfg5 {[%emt 0:1:7]} Bd5 {[%emt 0:0:9]
} 15. Qh5 {[%emt 0:2:49]} h6 {[%emt 0:0:2]} 16. Nf3 {[%emt 0:0:0]} Re8 {[%emt 0:0:35]} 17. Bb3 {[%emt 0:0:56]} Bxb3 {[%emt 0:1:23]} 18. axb3 {[%emt 0:0:2]} Re6 {[%emt 0:0:3]} 19. Rd1 {[%emt 0:1:58]} Nce7 {[%emt 0:0:36]
} 20. Nh4 {[%emt 0:1:35]} Nxh4 {[%emt 0:1:42]} 21. Qxh4 {[%emt 0:0:3]
} Qd7 {[%emt 0:0:19]} 22. Ng3 {[%emt 0:0:51]} f5 {[%emt 0:0:0]} 23. Be3 {[%emt 0:0:52]} Bxe3 {[%emt 0:0:2]} 24. fxe3 {[%emt 0:0:2]} Rf8 {[%emt 0:0:18]} 25. Qc4 {[%emt 0:1:26]} b5 {[%emt 0:0:34]} 26. Qc5 {[%emt 0:1:28]
} Rg6 {[%emt 0:1:27]} 27. Kh2 {[%emt 0:1:31]} f4 {[%emt 0:0:0]} 28. exf4 {[%emt 0:0:3]} exf4 {[%emt 0:0:6]} 29. Ne4 {[%emt 0:1:9]} Nf5 {[%emt 0:1:52]} 30. Rd2 {[%emt 0:0:44]} f3 {[%emt 0:1:37]} 31. g3 {[%emt 0:0:57]
} Qf7 {[%emt 0:0:44]} 32. Rf1 {[%emt 0:0:10]} Nxg3 {[%emt 0:0:0]} 33. Nxg3 {[%emt 0:0:16]} Rxg3 {[%emt 0:0:1]} 34. Qe5 {[%emt 0:0:11]} Rg5 {[%emt 0:0:7]} 35. Qd4 {[%emt 0:0:3]} c5 {[%emt 0:0:4]} 36. Qd6 {[%emt 0:0:3]
} Rg6 {[%emt 0:0:18]} 37. Qe5 {[%emt 0:0:20]} Re8 {[%emt 0:0:0]} 38. Qh5 {[%emt 0:0:14]} Rg2+ {[%emt 0:0:8]} 39. Rxg2 {[%emt 0:0:3]} Qxh5 {[%emt 0:0:1]} 0-1

[Event "FIDE World Rapid-ch Open 2018"]
[White "Vlassov, Nikolai"]
[Black "Jones, Gawain C B"]
[Site "St. Petersburg"]
[Round "12.73"]
[Annotator "ChessBase"]
[Result "0-1"]
[Date "2018.12.28"]
[WhiteElo "2401"]
[BlackElo "2682"]
[PlyCount "42"]
[TimeControl "900+10"]

1. e4 {[%emt 0:0:0]} c5 {[%emt 0:0:0]} 2. c3 {[%emt 0:0:0]} d5 {[%emt 0:0:0]} 3. exd5 {[%emt 0:0:0]} Qxd5 {[%emt 0:0:0]} 4. d4 {[%emt 0:0:0]} Nc6 {[%emt 0:0:0]} 5. Nf3 {[%emt 0:0:0]} Bf5 {[%emt 0:0:0]} 6. Na3 {[%emt 0:2:30]
} cxd4 {[%emt 0:0:0]} 7. Bc4 {[%emt 0:2:9]} Qe4+ {[%emt 0:0:0]} 8. Be3 {[%emt 0:0:31]} e6 {[%emt 0:0:12]} 9. Nxd4 {[%emt 0:1:12]} Bxa3 {[%emt 0:1:19]} 10. bxa3 {[%emt 0:0:40]} Qxg2 {[%emt 0:0:3]} 11. Rf1 {[%emt 0:0:3]
} Nge7 {[%emt 0:0:17]} 12. Qb3 {[%emt 0:1:10]} 0-0 {[%emt 0:0:0]} 13. Qxb7 {[%emt 0:1:40]} Rab8 {[%emt 0:0:22]} 14. Qa6 {[%emt 0:0:2]} Nxd4 {[%emt 0:1:44]} 15. Bxd4 {[%emt 0:1:27]} Rb2 {[%emt 0:0:44]} 16. Rd1 {[%emt 0:1:17]
} Nd5 {[%emt 0:0:54]} 17. Rd2 {[%emt 0:0:47]} Qe4+ {[%emt 0:0:0]} 18. Be2 {[%emt 0:0:2]} Rb1+ {[%emt 0:0:8]} 19. Rd1 {[%emt 0:0:3]} Rxd1+ {[%emt 0:0:8]} 20. Kxd1 {[%emt 0:0:1]} Nxc3+ {[%emt 0:0:8]} 21. Bxc3 {[%emt 0:0:6]} Qc2+ {[%emt 0:0:1]} 0-1

[Event "FIDE World Rapid-ch Open 2018"]
[White "Kobo, Ori"]
[Black "Iljiushenok, Ilia"]
[Site "St. Petersburg"]
[Round "12.74"]
[Annotator "ChessBase"]
[Result "1/2-1/2"]
[Date "2018.12.28"]
[WhiteElo "2494"]
[BlackElo "2533"]
[PlyCount "96"]
[TimeControl "900+10"]

1. Nf3 {[%emt 0:0:0]} Nf6 {[%emt 0:0:0]} 2. c4 {[%emt 0:0:1]} g6 {[%emt 0:0:0]
} 3. g3 {[%emt 0:0:7]} Bg7 {[%emt 0:0:0]} 4. Bg2 {[%emt 0:0:0]} 0-0 {[%emt 0:0:2]} 5. Nc3 {[%emt 0:0:2]} d6 {[%emt 0:0:5]} 6. d4 {[%emt 0:0:2]
} c5 {[%emt 0:0:49]} 7. d5 {[%emt 0:0:14]} e6 {[%emt 0:1:12]} 8. 0-0 {[%emt 0:0:5]} exd5 {[%emt 0:0:2]} 9. cxd5 {[%emt 0:0:1]} Re8 {[%emt 0:0:22]
} 10. Re1 {[%emt 0:0:12]} Ne4 {[%emt 0:0:54]} 11. Nxe4 {[%emt 0:0:4]
} Rxe4 {[%emt 0:0:1]} 12. Qc2 {[%emt 0:0:23]} Re8 {[%emt 0:0:0]} 13. Bg5 {[%emt 0:0:26]} Qb6 {[%emt 0:0:35]} 14. Rab1 {[%emt 0:3:6]} Qa6 {[%emt 0:1:55]} 15. Nd2 {[%emt 0:2:26]} Nd7 {[%emt 0:1:3]} 16. e4 {[%emt 0:2:41]
} Ne5 {[%emt 0:0:45]} 17. Bf1 {[%emt 0:0:11]} Qa5 {[%emt 0:0:0]} 18. Kg2 {[%emt 0:0:28]} b5 {[%emt 0:1:4]} 19. h3 {[%emt 0:1:26]} Bb7 {[%emt 0:0:40]
} 20. b4 {[%emt 0:2:8]} cxb4 {[%emt 0:0:20]} 21. Nb3 {[%emt 0:0:0]} Qb6 {[%emt 0:0:39]} 22. Be3 {[%emt 0:0:7]} Qd8 {[%emt 0:0:11]} 23. Bxb5 {[%emt 0:0:12]} Rc8 {[%emt 0:0:26]} 24. Qe2 {[%emt 0:0:52]} Nd7 {[%emt 0:1:5]
} 25. Na5 {[%emt 0:0:42]} Qxa5 {[%emt 0:4:27]} 26. Bxd7 {[%emt 0:0:1]
} Rcd8 {[%emt 0:0:1]} 27. Bxe8 {[%emt 0:0:18]} Rxe8 {[%emt 0:0:0]} 28. f3 {[%emt 0:1:38]} f5 {[%emt 0:0:0]} 29. exf5 {[%emt 0:0:23]} gxf5 {[%emt 0:0:19]} 30. Qf2 {[%emt 0:0:19]} Qxd5 {[%emt 0:0:46]} 31. Red1 {[%emt 0:0:19]
} Qb5 {[%emt 0:0:30]} 32. a4 {[%emt 0:0:18]} Qxa4 {[%emt 0:0:0]} 33. Bd4 {[%emt 0:0:9]} Qb5 {[%emt 0:0:35]} 34. Rb2 {[%emt 0:0:1]} Qd5 {[%emt 0:0:3]} 35. Rbd2 {[%emt 0:0:7]} Bxd4 {[%emt 0:0:5]} 36. Rxd4 {[%emt 0:0:4]
} Qxf3+ {[%emt 0:0:15]} 37. Qxf3 {[%emt 0:0:1]} Re2+ {[%emt 0:0:0]} 38. Kf1 {[%emt 0:0:7]} Bxf3 {[%emt 0:0:2]} 39. Rxd6 {[%emt 0:0:37]
} Ra2 {[%emt 0:0:20]} 40. Rc1 {[%emt 0:0:13]} Kf7 {[%emt 0:0:30]} 41. Rc7+ {[%emt 0:0:1]
} Ke8 {[%emt 0:0:1]} 42. Rxh7 {[%emt 0:0:19]} b3 {[%emt 0:0:0]} 43. Re6+ {[%emt 0:0:12]} Kf8 {[%emt 0:0:5]} 44. Rf6+ {[%emt 0:0:5]} Kg8 {[%emt 0:0:4]} 45. Rff7 {[%emt 0:0:8]} b2 {[%emt 0:0:25]} 46. Rhg7+ {[%emt 0:0:1]
} Kh8 {[%emt 0:0:1]} 47. Rh7+ {[%emt 0:0:3]} Kg8 {[%emt 0:0:0]} 48. Rhg7+ Kh8 1/2-1/2

[Event "FIDE World Rapid-ch Open 2018"]
[White "Reshetnikov, Alexey"]
[Black "Christiansen, Johan-Sebastian"]
[Site "St. Petersburg"]
[Round "12.79"]
[Annotator "ChessBase"]
[Result "1-0"]
[Date "2018.12.28"]
[WhiteElo "2492"]
[BlackElo "2555"]
[PlyCount "89"]
[TimeControl "900+10"]

1. c4 {[%emt 0:0:0]} e5 {[%emt 0:0:0]} 2. Nc3 {[%emt 0:0:0]} Nc6 {[%emt 0:0:0]
} 3. g3 {[%emt 0:0:0]} Bc5 {[%emt 0:0:0]} 4. Bg2 {[%emt 0:0:0]} d6 {[%emt 0:0:1]} 5. e3 {[%emt 0:0:0]} a6 {[%emt 0:0:8]} 6. Nge2 {[%emt 0:0:3]
} Ba7 {[%emt 0:0:4]} 7. b3 {[%emt 0:1:59]} h5 {[%emt 0:0:2]} 8. h3 {[%emt 0:1:29]} h4 {[%emt 0:0:2]} 9. g4 {[%emt 0:0:1]} f5 {[%emt 0:0:0]} 10. gxf5 {[%emt 0:0:42]} Bxf5 {[%emt 0:0:2]} 11. Be4 {[%emt 0:0:28]
} Qd7 {[%emt 0:1:8]} 12. Qc2 {[%emt 0:0:36]} Bxe4 {[%emt 0:1:32]} 13. Nxe4 {[%emt 0:0:10]} 0-0-0 {[%emt 0:0:3]} 14. Ba3 {[%emt 0:0:10]} Nge7 {[%emt 0:0:0]} 15. N2c3 {[%emt 0:0:23]} Rdf8 {[%emt 0:2:29]} 16. Qd1 {[%emt 0:1:14]
} Nf5 {[%emt 0:4:45]} 17. Qg4 {[%emt 0:0:16]} Kb8 {[%emt 0:0:4]} 18. 0-0-0 {[%emt 0:0:13]} Nd8 {[%emt 0:0:42]} 19. Rhg1 {[%emt 0:1:21]} Ne6 {[%emt 0:0:0]} 20. Kb1 {[%emt 0:0:45]} Ka8 {[%emt 0:0:27]} 21. Qe2 {[%emt 0:0:47]} Rb8 {[%emt 0:0:13]} 22. d3 {[%emt 0:0:21]} Rhf8 {[%emt 0:0:20]} 23. Rg6 {[%emt 0:0:11]
} b5 {[%emt 0:0:48]} 24. Bb2 {[%emt 0:0:2]} Rb7 {[%emt 0:0:0]} 25. Qg4 {[%emt 0:0:29]} Nd8 {[%emt 0:1:3]} 26. Rg5 {[%emt 0:1:14]} Qf7 {[%emt 0:0:16]} 27. Rg1 {[%emt 0:1:44]} b4 {[%emt 0:0:46]} 28. Ne2 a5 29. Qh5 {[%emt 0:0:56]} Qd7 {[%emt 0:0:20]} 30. Rg6 {[%emt 0:0:57]} a4 {[%emt 0:0:0]} 31. R1g5 {[%emt 0:0:9]} a3 {[%emt 0:0:3]} 32. Ba1 {[%emt 0:0:5]} d5 {[%emt 0:0:51]} 33. cxd5 {[%emt 0:0:17]} Qxd5 {[%emt 0:0:1]} 34. Nc1 {[%emt 0:0:4]
} Qd7 {[%emt 0:0:45]} 35. Qg4 {[%emt 0:0:11]} Rf7 {[%emt 0:0:0]} 36. Nd2 {[%emt 0:1:12]} Rb5 {[%emt 0:0:48]} 37. Nc4 {[%emt 0:0:7]} Rf8 {[%emt 0:0:30]} 38. Rxg7 {[%emt 0:0:25]} Qc8 {[%emt 0:0:9]} 39. Rg8 {[%emt 0:0:7]
} Rf6 {[%emt 0:0:14]} 40. Bxe5 {[%emt 0:0:23]} Rf7 {[%emt 0:0:0]} 41. e4 {[%emt 0:0:30]} Rxe5 {[%emt 0:0:15]} 42. Nxe5 {[%emt 0:0:2]} Qe6 {[%emt 0:0:5]} 43. Rxf5 {[%emt 0:0:17]} Kb7 {[%emt 0:0:15]} 44. Nxf7 {[%emt 0:0:19]
} Nc6 {[%emt 0:0:4]} 45. Rb5+ {[%emt 0:0:7]} 1-0

[Event "FIDE World Rapid-ch Open 2018"]
[White "Makoveev, Ilya"]
[Black "Gordievsky, Dmitry"]
[Site "St. Petersburg"]
[Round "12.84"]
[Annotator "ChessBase"]
[Result "1-0"]
[Date "2018.12.28"]
[WhiteElo "2257"]
[BlackElo "2614"]
[PlyCount "81"]
[TimeControl "900+10"]

1. e4 {[%emt 0:0:0]} c5 {[%emt 0:0:0]} 2. Nf3 {[%emt 0:0:0]} Nc6 {[%emt 0:0:0]
} 3. Bb5 {[%emt 0:0:0]} g6 {[%emt 0:0:0]} 4. Bxc6 {[%emt 0:0:0]} bxc6 {[%emt 0:0:0]} 5. 0-0 {[%emt 0:0:2]} Bg7 {[%emt 0:0:0]} 6. Re1 {[%emt 0:0:6]} Nh6 {[%emt 0:0:31]} 7. c3 {[%emt 0:0:15]} 0-0 {[%emt 0:0:0]} 8. d4 {[%emt 0:0:1]} cxd4 {[%emt 0:0:10]} 9. cxd4 {[%emt 0:0:4]} d5 {[%emt 0:0:21]} 10. e5 {[%emt 0:2:23]} f6 {[%emt 0:0:3]} 11. e6 {[%emt 0:1:12]
} Qd6 {[%emt 0:3:29]} 12. Qe2 {[%emt 0:0:48]} c5 {[%emt 0:0:0]} 13. Nc3 {[%emt 0:5:20]} Nf5 {[%emt 0:2:42]} 14. dxc5 {[%emt 0:0:57]} Qxc5 {[%emt 0:0:16]} 15. Qb5 {[%emt 0:4:0]} Qxb5 {[%emt 0:0:49]} 16. Nxb5 {[%emt 0:0:0]
} Bb7 {[%emt 0:0:35]} 17. g4 {[%emt 0:0:57]} a6 {[%emt 0:0:42]
} 18. gxf5 {[%emt 0:0:24]} axb5 {[%emt 0:0:2]} 19. Nd4 {[%emt 0:0:6]} Rfc8 {[%emt 0:2:14]} 20. Be3 {[%emt 0:0:6]} b4 {[%emt 0:0:17]} 21. Rec1 {[%emt 0:0:58]
} Kf8 {[%emt 0:0:4]} 22. Rxc8+ {[%emt 0:0:9]} Rxc8 {[%emt 0:0:0]} 23. Rc1 {[%emt 0:0:1]} gxf5 {[%emt 0:1:52]} 24. Rxc8+ {[%emt 0:0:0]} Bxc8 {[%emt 0:0:1]} 25. f4 {[%emt 0:0:1]} b3 {[%emt 0:0:57]} 26. a4 {[%emt 0:0:45]
} Ke8 {[%emt 0:0:6]} 27. Bd2 {[%emt 0:0:7]} Kd8 {[%emt 0:0:0]} 28. Ba5+ {[%emt 0:0:1]} Ke8 {[%emt 0:0:1]} 29. Kf2 {[%emt 0:0:12]} Bh6 {[%emt 0:0:3]} 30. Ke3 {[%emt 0:0:12]} Bf8 {[%emt 0:0:15]} 31. Kd2 {[%emt 0:0:13]
} Bh6 {[%emt 0:0:4]} 32. Ke3 {[%emt 0:0:12]} Bf8 {[%emt 0:0:0]} 33. Bb6 {[%emt 0:0:13]} Bh6 {[%emt 0:0:13]} 34. a5 {[%emt 0:0:1]} Bf8 {[%emt 0:0:7]} 35. h3 {[%emt 0:0:27]} Bh6 {[%emt 0:0:12]} 36. h4 {[%emt 0:0:0]} Bg7 {[%emt 0:0:7]} 37. Bc7 {[%emt 0:0:7]} Bh6 {[%emt 0:0:14]} 38. Kd3 {[%emt 0:0:8]} Kf8 {[%emt 0:0:39]} 39. Kc3 {[%emt 0:0:5]} Bb7 {[%emt 0:0:21]
} 40. Kxb3 {[%emt 0:0:9]} Kg7 {[%emt 0:0:1]} 41. h5 {[%emt 0:0:0]} 1-0

[Event "FIDE World Rapid-ch Open 2018"]
[White "Tsoi, Dmitry"]
[Black "Lintchevski, Daniil"]
[Site "St. Petersburg"]
[Round "12.85"]
[Annotator "ChessBase"]
[Result "0-1"]
[Date "2018.12.28"]
[WhiteElo "2424"]
[BlackElo "2516"]
[PlyCount "102"]
[TimeControl "900+10"]

1. e4 {[%emt 0:0:0]} c5 {[%emt 0:0:0]} 2. Be2 {[%emt 0:0:0]} e5 {[%emt 0:0:0]} 3. d3 {[%emt 0:0:8]} Bd6 {[%emt 0:2:6]} 4. Nh3 {[%emt 0:2:58]} Bc7 {[%emt 0:0:4]} 5. Nc3 {[%emt 0:1:38]} Ne7 {[%emt 0:0:12]} 6. Bg5 {[%emt 0:0:0]} Ba5 {[%emt 0:0:59]} 7. 0-0 {[%emt 0:3:23]} Bxc3 {[%emt 0:0:3]} 8. bxc3 {[%emt 0:0:1]} Nbc6 {[%emt 0:0:49]} 9. f4 {[%emt 0:0:55]} h6 {[%emt 0:0:0]} 10. Bxe7 {[%emt 0:0:8]} Qxe7 {[%emt 0:0:3]} 11. f5 {[%emt 0:0:6]} f6 {[%emt 0:1:31]} 12. Bh5+ {[%emt 0:0:22]} Kd8 {[%emt 0:0:1]} 13. c4 {[%emt 0:0:14]
} b6 {[%emt 0:0:12]} 14. Nf2 {[%emt 0:0:7]} Bb7 {[%emt 0:0:0]} 15. Ng4 {[%emt 0:0:19]} Kc7 {[%emt 0:0:27]} 16. Ne3 Na5 17. Rb1 {[%emt 0:0:20]
} Bc6 {[%emt 0:0:27]} 18. Bg6 {[%emt 0:0:19]} Rab8 {[%emt 0:0:0]} 19. Qh5 {[%emt 0:0:6]} Rhf8 {[%emt 0:0:15]} 20. Rb2 {[%emt 0:0:52]} Qd6 {[%emt 0:0:30]} 21. Rbb1 {[%emt 0:1:0]} Qe7 {[%emt 0:0:2]} 22. Kf2 {[%emt 0:0:14]
} a6 {[%emt 0:0:7]} 23. Qe2 {[%emt 0:0:15]} Qd6 {[%emt 0:0:0]} 24. Qe1 {[%emt 0:1:26]} Nb7 {[%emt 0:1:8]} 25. Qc3 {[%emt 0:0:13]} b5 {[%emt 0:0:10]} 26. a3 {[%emt 0:0:51]} Qd4 {[%emt 0:0:20]} 27. Qb2 {[%emt 0:0:0]} Nd6 {[%emt 0:0:41]} 28. cxb5 {[%emt 0:0:24]} Rxb5 {[%emt 0:0:29]} 29. Qxd4 {[%emt 0:0:32]} cxd4 {[%emt 0:0:2]} 30. Ng4 {[%emt 0:0:3]} Rfb8 {[%emt 0:0:15]
} 31. Rxb5 {[%emt 0:0:1]} Rxb5 {[%emt 0:0:1]} 32. Kg3 {[%emt 0:0:27]
} Rc5 {[%emt 0:0:29]} 33. Rf2 {[%emt 0:0:44]} Bxe4 {[%emt 0:0:0]} 34. Kh4 {[%emt 0:0:24]} Bc6 {[%emt 0:0:2]} 35. Bh7 {[%emt 0:0:46]} e4 {[%emt 0:0:11]} 36. dxe4 {[%emt 0:0:19]} Bxe4 {[%emt 0:0:2]} 37. Rd2 {[%emt 0:0:2]
} Bxf5 {[%emt 0:0:17]} 38. Bxf5 {[%emt 0:0:5]} Nxf5+ {[%emt 0:0:0]} 39. Kh3 {[%emt 0:0:11]} Rc3+ {[%emt 0:0:14]} 40. g3 {[%emt 0:0:1]} Rxa3 {[%emt 0:0:17]} 41. Nf2 {[%emt 0:0:1]} a5 {[%emt 0:0:31]} 42. Kg4 {[%emt 0:0:38]
} Ne3+ {[%emt 0:0:32]} 43. Kh5 {[%emt 0:0:1]} Rc3 {[%emt 0:0:0]} 44. Rxd4 {[%emt 0:0:3]} Rxc2 {[%emt 0:0:3]} 45. Ne4 {[%emt 0:0:28]} Rc4 {[%emt 0:0:15]} 46. Rxc4+ {[%emt 0:0:1]} Nxc4 {[%emt 0:0:1]} 47. Nc3 {[%emt 0:0:1]
} Ne5 {[%emt 0:0:14]} 48. g4 {[%emt 0:0:20]} Kc6 {[%emt 0:0:0]} 49. h4 {[%emt 0:0:2]} d5 {[%emt 0:0:8]} 50. g5 {[%emt 0:0:0]} hxg5 {[%emt 0:0:2]
} 51. hxg5 {[%emt 0:0:2]} fxg5 {[%emt 0:0:6]} 0-1